Cogmind - Beta 15 @@@ ROGUE MODE // 2025.06.07 @ 22:10:04 // Winter2022/Polymind Player: Epsilon 11 Result: Self-destructed Performance ------------- Evolutions (2) 1000 Regions Visited (5) 1000 Robots Destroyed (5) 25 Value Destroyed (150) 150 Prototype IDs (0) 0 Alien Tech Used (0) 0 Bonus (2180) 2180 TOTAL SCORE: 4025 Bonus ------- Polymind Skill 1740 Pacifist 200 Follower Combat Kills 40 Entered Garrisons 200 Cogmind --------- Core Integrity 337/550 Matter 0/0 Energy 50/50 System Corruption 1% Temperature Cool (9) Movement Core (100) Ox1 Location -8/Garrison Parts ------- > --- POWER (1) -------- (None) > --- PROPULSION (2) --- (None) > --- UTILITY (3) ------ Improved Heat Sink Target Analyzer > --- WEAPON (3) ------- Remote Datajack > --- INVENTORY (5) ---- (None) Peak State ------------ > --- POWER ------------ Micro Nuclear Core > --- PROPULSION ------- Gravmag System Gravmag System > --- UTILITY ---------- Improved Heat Sink Improved Heat Sink Target Analyzer > --- WEAPON ----------- Shock Rifle Shock Rifle Remote Datajack > --- INVENTORY -------- (None) [Rating: 31] Favorites ----------- Power Light Ion Engine Engine Light Ion Engine Power Core Micro Nuclear Core Propulsion Compact Wheel Wheel Compact Wheel Hover Unit Gravmag System Flight Unit Flight Unit Utility Small Storage Unit Device Tractor Beam Storage Small Storage Unit Processor Target Analyzer Weapon Shock Rifle Energy Gun Shock Rifle Ballistic Gun Light Assault Rifle Special Weapon Remote Datajack Build | -11 -10 -10 -9 -8 -8 ------- Run | Yrd Mat Min Mat Mat Gar Slots Evolved . | . . . . . . Power . | . . . . . . Propulsion . | . . . . . . Utility . | . . . . . . Weapon . | . . . . . . Parts Attached . | . . . . . . Power . | . . . . . . Engine . | . . . . . . Core . | . . . . . . Reactor . | . . . . . . Propulsion . | . . . . . . Treads . | . . . . . . Leg . | . . . . . . Wheel . | . . . . . . Hover . | . . . . . . Flight . | . . . . . . Utility . | . . . . . . Device . | . . . . . . Storage . | . . . . . . Processor . | . . . . . . Hackware . | . . . . . . Protection . | . . . . . . Artifact . | . . . . . . Weapon . | . . . . . . Energy Gun . | . . . . . . Energy Cannon . | . . . . . . Ballistic Gun . | . . . . . . Ballistic Cannon . | . . . . . . Launcher . | . . . . . . Special Weapon . | . . . . . . Impact Weapon . | . . . . . . Slashing Weapon . | . . . . . . Piercing Weapon . | . . . . . . Special Melee Weapon . | . . . . . . Unidentified Prototypes . | . . . . . . Parts Lost 6 | . . . . . 6 Power 1 | . . . . . 1 Propulsion 2 | . . . . . 2 Utility 1 | . . . . . 1 Weapon 2 | . . . . . 2 Highest Loss Streak 5 | . . . . . 5 To Critical Strikes . | . . . . . . Average Backups 2 | 1 2 3 3 . . Power . | . . . . . . Propulsion . | 1 1 . . . . Utility . | . . 1 1 . . Weapon 1 | . 1 1 1 . . Tool/Special . | . . . . . . Unused Backups 8 | . 4 . 4 . . Power . | . . . . . . Propulsion 2 | . 2 . . . . Utility 2 | . . . 2 . . Weapon 4 | . 2 . 2 . . Tool/Special . | . . . . . . Average Slot Usage (%) 95 | . 100 100 96 100 84 Engine 17 | . 20 20 20 25 6 Core 1 | . . . . . 6 Wheel 26 | . 40 40 30 . . Hover 2 | . . . . . 12 Flight 8 | . . . 10 50 13 Device 16 | . 20 20 15 . 14 Storage 13 | . 20 20 15 . . Processor 1 | . . . . . 7 Energy Gun 1 | . . . . . 8 Ballistic Gun 4 | . . . 5 25 6 Special Weapon 1 | . . . . . 7 Peak Build Rating 31 | 5 5 5 5 4 31 Average Rating 7 | 3 5 5 4 4 19 On Entrance 3 | . 5 5 5 4 4 Naked Turns 23 | . . . 6 . 17 Heaviest Build 17 | 9 9 9 9 4 17 Greatest Support 32 | 32 32 32 32 8 18 Greatest Overweight (x) 3 | . . . . . 3 Average Overweight (x) . | . . . . . . Largest Inventory Capacity 5 | 4 4 4 4 . 5 Average Capacity 3 | 2 4 4 2 . 3 Most Carried 4 | 4 4 4 4 . . Average Carried 2 | 1 2 3 2 . . Final Capacity 5 | 4 4 4 . . 5 Final Carried 4 | 4 1 4 . . . Class Distribution -------------------- 68% | Recycler 14% | Swarmer 14% | Programmer Dominant Class ---------------- Recycler | -10/Materials Recycler | -10/Mines Recycler | -9/Materials Swarmer | -8/Materials Programmer | -8/Garrison Resources | -11 -10 -10 -9 -8 -8 ----------- Run | Yrd Mat Min Mat Mat Gar Matter Collected 7 | . . . 7 . . Remotely . | . . . . . . Salvage Created 177 | . . . 15 . 162 Parts 15 | . . . 3 . 12 Haulers Intercepted . | . . . . . . Recyclers Shooed . | . . . . . . Parts Field Recycled . | . . . . . . Retrieved Matter . | . . . . . . Parts Self-Destructed . | . . . . . . Prevented . | . . . . . . Kills | -11 -10 -10 -9 -8 -8 ------- Run | Yrd Mat Min Mat Mat Gar Combat Hostiles Destroyed 5 | . . . 2 . 3 Guns 5 | . . . 2 . 3 Classes Destroyed 2 | . . . 1 . 1 Swarmer 3 | . . . 2 . 1 Programmer 2 | . . . . . 2 Best Kill Streak 2 | . . . 2 . 1 Combat Bots Only 2 | . . . 2 . 1 Max Kills in Single Turn 1 | . . . 1 . 1 Gunslinging . | . . . . . . Exploded . | . . . . . . Melee . | . . . . . . Uniques/NPCs Destroyed . | . . . . . . Combat | -11 -10 -10 -9 -8 -8 -------- Run | Yrd Mat Min Mat Mat Gar Hostile Shots Fired 141 | . . . 15 . 126 Missed 44 | . . . 8 . 36 Hits 97 | . . . 7 . 90 Projectile 97 | . . . 7 . 90 Critical Strikes 6 | . . . . . 6 Damage Taken 687 | . . . 90 . 597 Core 223 | . . . 10 . 213 Absorbed by Shields 36 | . . . . . 36 Ignored by Resistances 626 | . . . . . 626 Core Remaining (%) 99 | 100 . 100 97 . . Volleys Fired 48 | . . . 11 . 37 Largest 2 | . . . 1 . 2 Hottest 100 | . . . 20 . 100 Shots Fired 61 | . . . 11 . 50 Gun 61 | . . . 11 . 50 Cannon . | . . . . . . Launcher . | . . . . . . Special . | . . . . . . Kinetic 11 | . . . 11 . . Thermal . | . . . . . . Explosive . | . . . . . . Electromagnetic 50 | . . . . . 50 Robot Hit Streak 11 | . . . 1 . 11 Robot Miss Streak 4 | . . . 2 . 4 Penetration Max . | . . . . . . Secondary Targets 1 | . . . . . 1 Max Gunslinging Chain 1 | . . . . . 1 Shots Hit Robots 37 | . . . 4 . 33 Core Hits 19 | . . . 2 . 17 Critical Kills . | . . . . . . Critical Parts Destroyed . | . . . . . . Critical Strikes 2 | . . . . . 2 Corrupt 2 | . . . . . 2 Melee Attacks . | . . . . . . Impact . | . . . . . . Slashing . | . . . . . . Piercing . | . . . . . . Sneak Attacks . | . . . . . . Combat Hostiles . | . . . . . . Follow-up Attacks . | . . . . . . Damage Inflicted 343 | . . . 33 . 310 Guns 178 | . . . 33 . 145 Cannons . | . . . . . . Explosions 165 | . . . . . 165 Melee . | . . . . . . Ramming . | . . . . . . Kinetic 33 | . . . 33 . . Thermal 165 | . . . . . 165 Explosive . | . . . . . . Electromagnetic 145 | . . . . . 145 Impact . | . . . . . . Slashing . | . . . . . . Piercing . | . . . . . . Highest Corruption 1 | . . . . 1 1 Average Corruption 1 | . . . . 1 1 Corruption Purged . | . . . . . . Corruption Blocked . | . . . . . . Overload Shots . | . . . . . . Overflow Damage 36 | . . . . . 36 Projectiles . | . . . . . . Explosions 36 | . . . . . 36 Melee . | . . . . . . Knockbacks . | . . . . . . Impact . | . . . . . . Kinetic . | . . . . . . Secondary . | . . . . . . Self-Inflicted Damage 56 | . . . . . 56 Shots 1 | . . . . . 1 Rammed . | . . . . . . Targets Rammed . | . . . . . . Kicked . | . . . . . . Crushed . | . . . . . . Highest Temperature 26 | . . . 26 . 11 Average Temperature 9 | . . . 10 . 7 Received Heat Transfer 75 | . . . 30 . 45 Siege Activations . | . . . . . . Martial Activations . | . . . . . . Shielding Activations . | . . . . . . Robots Disrupted . | . . . . . . Combat Hostiles . | . . . . . . Robots Corrupted . | . . . . . . Combat Hostiles . | . . . . . . Parts Fried . | . . . . . . Impact Corruptions . | . . . . . . Robots Melted . | . . . . . . Combat Hostiles . | . . . . . . Parts Melted . | . . . . . . Heat Transferred 100 | . . . . . 100 Parts Sabotaged . | . . . . . . Parts Stolen . | . . . . . . Parts Stripped . | . . . . . . Power Chain Reactions 1 | . . . . . 1 Alert | -11 -10 -10 -9 -8 -8 ------- Run | Yrd Mat Min Mat Mat Gar Maximum Alert Level . | . . . . . . Low Security (%) 100 | 100 100 100 100 100 100 Level 1 . | . . . . . . Level 2 . | . . . . . . Level 3 . | . . . . . . Level 4 . | . . . . . . Level 5 . | . . . . . . High Security . | . . . . . . Max Security . | . . . . . . Peak Influence 94 | . . . 55 11 94 Initial 11 | . . . . 11 7 Average 13 | . . . 14 11 42 Influence Increases 227 | . . . 130 . 97 Destroy 0b10 Robot/C 140 | . . . 80 . 60 Destroy Leader 20 | . . . 20 . . Allied During Kill 3 | . . . 3 . . Successful Hack 26 | . . . 12 . 14 Destroy Structure 23 | . . . . . 23 Partial Spotted 15 | . . . 15 . . Influence Decreases 183 | . . . 102 17 64 Entered New Map 21 | . . . . 17 4 Time Decay 73 | . . . 73 . . Lost Part 60 | . . . . . 60 Lost Ally 29 | . . . 29 . . Squads Dispatched 2 | . . . 2 . . Investigation . | . . . . . . Extermination . | . . . . . . Reinforcement 2 | . . . 2 . . Assault . | . . . . . . Garrison . | . . . . . . Intercept . | . . . . . . Searches Triggered . | . . . . . . Construction Impeded . | . . . . . . Haulers Reinforced . | . . . . . . Active Scanning Responses . | . . . . . . Cargo Convoy Interrupts . | . . . . . . Stealth | -11 -10 -10 -9 -8 -8 --------- Run | Yrd Mat Min Mat Mat Gar Distress Signals . | . . . . . . Communications Jammed . | . . . . . . Distress Signals . | . . . . . . Times Spotted 23 | . . . 12 . 11 Peak Tracking Total 6 | . . . 5 . 6 Tactical Retreats . | . . . . . . Traps | -11 -10 -10 -9 -8 -8 ------- Run | Yrd Mat Min Mat Mat Gar Traps Triggered . | . . . . . . Indirectly . | . . . . . . Trap Hack Attempts . | . . . . . . Triggered . | . . . . . . Disarmed . | . . . . . . Reprogrammed . | . . . . . . Reused . | . . . . . . Traps Extracted . | . . . . . . Installed . | . . . . . . Triggered . | . . . . . . Machines | -11 -10 -10 -9 -8 -8 ---------- Run | Yrd Mat Min Mat Mat Gar Machines Disabled . | . . . . . . Max in Single Turn . | . . . . . . Machines Repaired . | . . . . . . Machines Dismantled . | . . . . . . Machines Sabotaged . | . . . . . . Overloaded Fab Kills . | . . . . . . Hacking | -11 -10 -10 -9 -8 -8 --------- Run | Yrd Mat Min Mat Mat Gar Machines Accessed 6 | . . . 3 2 1 Terminals 5 | . . . 3 1 1 Fabricators . | . . . . . . Repair Stations . | . . . . . . Recycling Units . | . . . . . . Scanalyzers . | . . . . . . Garrison Access 1 | . . . . 1 . Total Hacks 18 | . . . 14 3 1 Successful 8 | . . . 6 1 1 Failed 10 | . . . 8 2 . Catastrophic 1 | . . . . 1 . Database Lockouts . | . . . . . . Manual 11 | . . . 11 . . Terminals 17 | . . . 14 2 1 Fabricators . | . . . . . . Repair Stations . | . . . . . . Recycling Units . | . . . . . . Scanalyzers . | . . . . . . Garrison Access 1 | . . . . 1 . Terminal Hacks 2 | . . . 1 . 1 Emergency Access Points 1 | . . . . . 1 Terminal Index 1 | . . . 1 . . Fabricator Hacks . | . . . . . . Repair Station Hacks . | . . . . . . Recycling Unit Hacks . | . . . . . . Scanalyzer . | . . . . . . Garrison Access Hacks 1 | . . . . 1 . Unlock Access 1 | . . . . 1 . Unauthorized Hacks 5 | . . . 5 . . Terminals 5 | . . . 5 . . Botnet 2 | . . . 2 . . Skim 3 | . . . 3 . . Fabricators . | . . . . . . Repair Stations . | . . . . . . Recycling Units . | . . . . . . Scanalyzers . | . . . . . . Garrison Access . | . . . . . . Data Cores Recovered . | . . . . . . Used . | . . . . . . Hacking Detections 5 | . . . 3 1 1 Full Trace Events 1 | . . . . 1 . Feedback Events 1 | . . . . 1 . Corruption 1 | . . . . 1 . Feedback Blocked . | . . . . . . Robot Schematics Acquired . | . . . . . . Robots Built . | . . . . . . Authchips . | . . . . . . Time . | . . . . . . Total Robot Build Rating . | . . . . . . Part Schematics Acquired . | . . . . . . Parts Built . | . . . . . . Authchips . | . . . . . . Time . | . . . . . . Total Part Build Rating . | . . . . . . Parts Repaired . | . . . . . . Time . | . . . . . . Parts Recycled . | . . . . . . Recycled Matter . | . . . . . . Retrieved Matter . | . . . . . . Retrieved Components . | . . . . . . Parts Scanalyzed . | . . . . . . Part Schematics Acquired . | . . . . . . Parts Damaged . | . . . . . . Bothacking | -11 -10 -10 -9 -8 -8 ------------ Run | Yrd Mat Min Mat Mat Gar Used RIF Installer . | . . . . . . Robots Hacked 2 | . . . 1 . 1 Non-combat . | . . . . . . Combat 2 | . . . 1 . 1 Robot Hacks Applied 2 | . . . 1 . 1 find_shortcuts 2 | . . . 1 . 1 Relay Couplers Released . | . . . . . . Fabnet Peak Effective % . | . . . . . . Robots Rewired . | . . . . . . Allies Hacked . | . . . . . . Hacks Repelled . | . . . . . . Allies | -11 -10 -10 -9 -8 -8 -------- Run | Yrd Mat Min Mat Mat Gar Total Allies 3 | . . 3 . . . Largest Group 3 | . . 3 3 . . Highest-Rated Group 40 | . . 40 40 . . Highest-Rated Ally 16 | . . 16 16 . . Total Orders . | . . . . . . Ally Attacks 10 | . . . 10 . . Total Damage 138 | . . . 138 . . Kills 2 | . . . 2 . . Allies Corrupted . | . . . . . . Allies Melted . | . . . . . . Intel | -11 -10 -10 -9 -8 -8 ------- Run | Yrd Mat Min Mat Mat Gar Active Infowar (turns) . | . . . . . . Robot Analysis Total 3 | 1 . . 1 . 1 Derelict Logs Recovered 1 | . . 1 . . . Drone Launches . | . . . . . . Drone Recoveries . | . . . . . . Exploration | -11 -10 -10 -9 -8 -8 ------------- Run | Yrd Mat Min Mat Mat Gar Turns Passed 851 | 38 147 211 269 19 167 Spaces Moved 862 | 44 143 205 307 50 113 Core 30 | 18 . . 8 . 4 Treads . | . . . . . . Legs . | . . . . . . Wheels 556 | 26 143 205 182 . . Hover 15 | . . . . . 15 Flight 261 | . . . 117 50 94 Fastest Speed 37 | 50 100 100 37 37 37 Average Speed 78 | 79 100 100 74 37 41 Slowest Speed 200 | 100 100 100 100 37 200 Overloaded Moves . | . . . . . . Propulsion Burnouts . | . . . . . . Robots Hopped 4 | . . . 4 . . Potential Cave-ins . | . . . . . . Cave-ins Triggered . | . . . . . . Exploration Rate (%) 26 | 3 30 49 34 8 33 Regions Visited 5 Branch Regions 1 Pre-discovered Areas 1 | . . 1 . . . Known Exits Taken 1 | . . . . 1 . Unknown Exits Taken 4 | 1 1 1 1 . . Scrap Searched 1 | . . 1 . . . Spaces Dug . | . . . . . . Terrain Destroyed 10 | . . . . . 10 Melee . | . . . . . . Projectile . | . . . . . . AOE 10 | . . . . . 10 Terrain Rammed . | . . . . . . Walls Destroyed . | . . . . . . Machines Disabled . | . . . . . . Actions | -11 -10 -10 -9 -8 -8 --------- Run | Yrd Mat Min Mat Mat Gar Total 962 | 47 147 211 333 50 174 Wait 25 | . . 4 20 . 1 Move 850 | 43 142 204 298 50 113 Hop 4 | . . . 4 . . Pick Up 8 | 4 1 3 . . . Fast Attach . | . . . . . . Attach . | . . . . . . Detach . | . . . . . . Swap . | . . . . . . Drop . | . . . . . . Fire 48 | . . . 11 . 37 Melee . | . . . . . . Ram . | . . . . . . Kick . | . . . . . . Crush . | . . . . . . Escape Stasis . | . . . . . . Rewire 14 | . . . . . 14 Trap . | . . . . . . Miscellaneous 13 | . 4 . . . 9 Route ------- -11/Scrapyard -10/Materials -10/Mines -9/Materials -8/Materials -8/Garrison History --------- Turn | Location | Event 6 | -11/Scrapyard | Discovered new exit (range 14) 39 | -11/Scrapyard | Entered Materials 154 | -10/Materials | Discovered new exit (range 14) 186 | -10/Materials | Entered Mines 199 | -10/Mines | Met a Derelict bent on vengeance 336 | -10/Mines | Assisted by bots powering up and referring to "LRC-V3" 386 | -10/Mines | Discovered new exit (range 6) 397 | -10/Mines | Entered Materials 397 | -9/Materials | Accompanied by 3 allies 661 | -9/Materials | Discovered new exit (range 16) 666 | -9/Materials | Entered another Materials area 685 | -8/Materials | Identified exit to Garrison 685 | -8/Materials | Entered Garrison 701 | -8/Garrison | Triggered checkpoint 852 | -8/Garrison | Self-destructed Last Messages --------------- 00788_ P-60 Hacker resets P-60 Hacker, system corruption cleaned. 00799_ P-60 Hacker destroyed. 00807_ Emergency Access malfunctions. 00811_ Destroyed Imp. Heat Sink. 00813_ Destroyed Gravmag System. 00821_ P-60 Hacker destroyed. 00832_ Gravmag System destroyed. 00832_ Failed to hack S-10 Pest. 00834_ Failed to hack G-47 Trooper. 00834_ Shock Rifle destroyed. 00835_ Gravmag System destroyed. 00836_ Failed to hack S-10 Pest. 00838_ Hacked G-47 Trooper, rebooting. 00840_ Failed to hack S-10 Pest. 00843_ G-47 Trooper reactivates. 00844_ Imp. Heat Sink destroyed. 00844_ Failed to hack S-10 Pest. 00846_ Failed to hack G-47 Trooper. 00848_ Mic. Nuclear Core destroyed. 00848_ Failed to hack S-10 Pest. Map ----- +----------------------------------------------------+ | ??+ #?????????????????# #????????????????????? | | ??# #?????????????????# #????????????????????? | | ??# #?????????????????# #????????????????????? | | ??# #?????????????????# #####+## ##?????????? | | ### #?????????????????# ??????? | | #?????????????????# ??????? | | #?????????????????# ####"""#####?????????? | | #?????????????????# #????????????????????? | | #####+#?????????????????# #????????????????????? | | ????????????????????????# #????????????????????? | | ????????????????????????# #????????????????????? | | ????????????????????????# #????????????????????? | | ????????????????????????# #????????????????????? | | ????????????????????????# #????????????????????? | | ????????????????????????# #############????????? | | ????????????????????????# ??????? | | ????????????????????????# ??????? | | ????+???????????????????# g ??????? | | ????????????????????????# ###############???????? | | ????????????????????????# ##????????????????????? | | ?????????????######"""### sT#????????????????????? | | ?????????????# s##????????????????????? | | ?????????????# s #?????????????????????? | | ?????????????###### ###s##?????????????????????? | | ?????????????????#"""???# #??????????????????????? | | ?????????????????###????#p#??????????????????????? | | ????????????????????????# #??????????????????????? | | ?????????????????????#### ####???????????????????? | | ?????????????????????# !# #! #???????????????????? | | ?????????????????????# %/*+ #???????????????????? | | ?????????????????????##+[%=""#???????????????????? | | ?????????????????????# !|!! #???????????????????? | | ?????????????????????#! [!%[ #???????????????????? | | ?????????????????????####=="##???????????????????? | | ???????????????????????# # ##????????????????????? | | ???????????????????????#####?????????????????????? | | ?????????????????????????????????????????????????? | | ?????????????????????????????????????????????????? | | ?????????????????????????????????????????????????? | | ?????????????????????????????????????????????????? | | | | | | | | | | | | | | | | | | | | | +----------------------------------------------------+ Best States ------------- Heat Dissipation 43 Energy Generation 20 Energy Capacity 100 Matter Stores 100 Matter Capacity 100 Sight Range 16 Terrain Scan Density 10 Resistance: EX 25 Resistance: EM 75 Evasion (%) 62 Target Analysis 5 Item Schematics ----------------- None Robot Schematics ------------------ None Fabricated ------------ Nothing Repaired ---------- Nothing Alien Tech Used ----------------- None Achievements -------------- None Challenges ------------ None Polymind | -11 -10 -10 -9 -8 -8 ---------- Run | Yrd Mat Min Mat Mat Gar Hosts 3 | 1 . . 1 . 1 Combat Hostiles 2 | . . . 1 . 1 Allies . | . . . . . . Unique Host Classes 3 | 1 . . 1 . 1 Average Host Suspicion 54 | 4 40 45 61 13 82 Unsuspicious Activity 22 | 2 20 . . . . Returns to Shadow . | . . . . . . Fuzzy Dispatches . | . . . . . . Protomatter Created 50 | . . 13 37 . . Used 51 | 5 . . 6 . 40 Decayed 11 | . . . 11 . . Highest Spend 40 | 5 . . 6 . 40 Top 5 Hosts by Kills: P-60 Hacker (-8/Garrison: 3) S-10 Pest (-9/Materials: 2) Game ------ Seed WeldingSensorProjector Manual? 0 Play Time 00:15:01 Cumulative 351.5 hours Start 2025.06.07 @ 21:54:20 End 2025.06.07 @ 22:10:04 Sessions 1 Manual Loads 0 Difficulty Rogue Special Mode Winter2022/Polymind Game No. 165 Rogue 122 Adventurer 43 Explorer 0 Win Type - Total 7 Types 4/0/1/0/0/0/0/1/0/1 Lore% 85 Gallery% 74 Achievement% 66 Wizard Run 0 Options --------- Layout 0 ASCII 0 Keyboard 0 Movement Numpad Keybinds 0 Fullscreen 1 Font 24/Smallcaps Map View 76x50 Zoom Use 0% Tactical HUD 1 Map Filters NONE Filters NONE Steam 1 RUN: 32f4dce0-311f-4d1a-bd20-ebb5a5f21807